bitfinex-derivatives/quotes_ETHF0:USTF0_20251119
["timestamp","ask_amount","ask_price","bid_price","bid_amount"]
[1763553141545,0.2397,3090.7,3090.6,0.2251]
[1763553141844,0.52452,3090.8,3090.7,0.74963]
[1763553142044,0.52759104,3090.8,3090.7,0.75277962]
[1763553142445,0.73939489,3090.8,3090.7,0.75277962]
[1763553143244,0.00307104,3090.8,3090.7,0.75277962]
[1763553143550,1.26363406,3090.8,3090.7,0.75277962]
[1763553144150,1.49543406,3090.8,3090.7,0.75277962]
[1763553144351,0.97027598,3090.8,3090.7,0.75277962]
[1763553144558,1.26299598,3090.8,3090.7,0.75277962]
[1763553145248,0.52759104,3090.8,3090.7,0.75277962]
[1763553145644,1.26289708,3090.8,3090.7,0.75277962]
[1763553145845,0.52759104,3090.8,3090.7,0.75277962]
[1763553146749,0.75939104,3090.8,3090.7,0.75277962]
[1763553147150,0.52759104,3090.8,3090.7,0.75277962]
[1763553147557,0.00307104,3090.8,3090.7,0.75277962]
[1763553148154,0.52759104,3090.8,3090.7,0.75277962]
[1763553148653,0.00307104,3090.8,3090.7,0.75277962]
[1763553149953,0.52759104,3090.8,3090.7,0.75277962]
[1763553151255,0.75939104,3090.8,3090.7,0.52767962]
[1763553151755,0.75939104,3090.8,3090.7,0.75777962]
[1763553152553,0.00307104,3090.8,3090.7,0.75777962]
[1763553153056,0.52759104,3090.8,3090.7,0.75777962]
[1763553153952,0.00307104,3090.8,3090.7,0.75777962]
[1763553154254,0.52443,3091.4,3091.3,0.76203]
[1763553154455,1.25906628,3091.4,3091.3,0.76203]
[1763553155058,1.26295038,3091.4,3091.3,0.76203]
[1763553155259,0.0038841,3091.4,3091.3,0.76203]
[1763553155846,0.2343841,3091.4,3091.3,0.76203]
[1763553156451,0.75496,3091.3,3091.2,0.52444]
[1763553156755,0.75496,3091.3,3091.2,0.76204]
[1763553156952,0.2305,3091.3,3091.2,0.76204]
[1763553157562,0.75499,3091.0,3090.9,0.76208]
[1763553157862,0.3705,3091.0,3090.9,0.76208]
[1763553158468,0.89498,3091.0,3090.9,0.76208]
[1763553158664,0.52447,3091.1,3091.0,0.76205]
[1763553160065,0.75497,3091.1,3091.0,0.76205]
[1763553160465,0.75497,3091.1,3091.0,0.2376]
[1763553161866,0.75497,3091.1,3091.0,0.76208]
[1763553162266,1.49073299,3091.1,3091.0,0.76208]
[1763553163569,1.49073299,3091.1,3091.0,0.2376]
[1763553163868,1.49073299,3091.1,3091.0,0.76208]
[1763553164171,0.96626299,3091.1,3091.0,0.76208]
[1763553164472,0.2305,3090.8,3090.7,3.44854962]
[1763553165368,0.75502,3090.8,3090.7,3.44854962]
[1763553165677,4.69900878,3090.8,3090.7,0.00314962]
[1763553174381,4.17448878,3090.8,3090.7,0.24074962]
[1763553174577,4.69900878,3090.8,3090.7,0.24074962]
[1763553175382,4.69900878,3090.8,3090.7,0.76528962]
[1763553175571,3.96282,3090.8,3090.7,0.76528962]
[1763553175775,3.2078,3090.8,3090.7,0.76528962]
[1763553175973,0.2305,3090.9,3090.8,0.76212]
[1763553176173,0.75502,3090.8,3090.7,0.00314962]
[1763553176380,0.75502,3090.8,3090.7,0.24074962]
[1763553176579,0.75502,3090.8,3090.7,0.76528962]
[1763553176783,0.75502,3090.8,3090.7,0.00314962]
[1763553177673,0.52451,3090.9,3090.8,0.76212]
[1763553178382,1.25883409,3090.9,3090.8,0.76212]
[1763553178882,1.48933409,3090.9,3090.8,0.2376]
[1763553179181,1.48933409,3090.9,3090.7,0.52766962]
[1763553179182,0.75502,3090.8,3090.7,0.00314962]
[1763553179370,0.75502,3090.8,3090.7,0.24074962]
[1763553180680,0.75502,3090.8,3090.7,0.00314962]
[1763553181884,0.52452,3090.8,3090.7,0.24074962]
[1763553182075,0.52452,3090.8,3090.7,0.76528962]
[1763553182276,0.231,3091.2,3091.1,0.2264]
[1763553182471,0.7593041,3091.4,3091.3,0.2264]
[1763553182775,0.7593041,3091.4,3091.3,0.75083]
[1763553183884,0.7593041,3091.4,3091.3,0.2264]
[1763553186088,0.52445,3091.2,3091.1,0.52446]
[1763553186292,0.75545,3091.2,3091.1,0.75086]
[1763553188090,0.75545,3091.2,3091.1,0.2264]
[1763553188395,0.52445,3091.2,3091.1,0.2264]
[1763553188989,0.75545,3091.2,3091.1,0.2264]
[1763553189193,0.75545,3091.2,3091.1,0.52447]
[1763553189698,0.75545,3091.2,3091.1,0.75087]
[1763553192700,0.231,3091.2,3091.1,0.75087]
[1763553192987,0.52444,3091.3,3091.2,0.75085]
[1763553193792,0.75545,3091.2,3091.1,0.52447]
[1763553193983,0.88871,3091.0,3090.9,0.52448]
[1763553194184,0.75552,3090.8,3090.7,0.00314962]
[1763553194484,1.48891152,3090.8,3090.7,0.00314962]
[1763553197296,0.88877,3090.5,3090.4,0.00484982]
[1763553198390,0.88877,3090.5,3090.4,0.00717041]
[1763553198884,1.62158654,3090.5,3090.4,0.00717041]
[1763553203294,0.231,3089.8,3089.7,3.4342]
[1763553203497,0.76669,3089.8,3089.7,3.4342]
[1763553204193,0.76669,3089.8,3089.7,3.2078]
[1763553204698,0.76669,3089.8,3089.7,3.21103932]
[1763553204998,0.76669,3089.8,3089.7,0.00323932]
[1763553207497,1.49900617,3089.8,3089.7,0.00323932]
[1763553207799,0.87144,3089.5,3089.4,0.00484982]
[1763553207997,1.99960923,3089.5,3089.4,0.00484982]
[1763553208888,1.99960923,3089.5,3089.4,0.00884904]
[1763553210700,0.76682,3089.0,3088.9,3.2078]
[1763553211300,0.90372,3089.0,3088.9,3.2078]
[1763553211702,0.90728554,3089.0,3088.9,3.21099578]
[1763553212003,0.90728554,3089.0,3088.9,0.00319578]
[1763553212296,0.76587,3088.7,3088.6,0.0032332]
[1763553213399,0.76587,3088.7,3088.6,0.0058881]
[1763553214795,0.76596,3088.2,3088.1,3.2078]
[1763553215001,3.4488,3088.5,3088.4,0.77043]
[1763553215396,3.97371,3088.5,3088.4,0.2455]
[1763553215605,3.4488,3088.5,3088.4,0.2455]
[1763553215903,3.97371,3088.5,3088.4,0.2491777]
[1763553216397,4.09901,3088.5,3088.4,0.0036777]
[1763553217103,0.76604,3087.7,3087.6,3.2078]
[1763553217903,0.76604,3087.7,3087.6,3.97836]
[1763553218102,0.76604,3087.7,3087.6,3.9811493]
[1763553218494,0.241,3087.7,3087.6,3.9811493]
[1763553218696,0.52503,3087.8,3087.7,0.2455]
[1763553218896,0.75354,3087.7,3087.6,3.2105893]
[1763553219898,0.52504,3087.7,3087.6,3.4388893]
[1763553220808,0.75354,3087.7,3087.6,3.4388893]
[1763553222309,0.75354,3087.7,3087.6,0.2310893]
[1763553222508,0.75354,3087.7,3087.6,0.0027893]
[1763553222710,0.75354,3087.7,3087.6,0.2310893]
[1763553222902,0.75354,3087.7,3087.6,0.0027893]
[1763553223595,0.75354,3087.7,3087.6,0.2310893]
[1763553226905,3.2078,3088.1,3087.9,0.2283]
[1763553227114,0.75348,3088.1,3088.0,0.3685]
[1763553231110,0.52497,3088.2,3088.1,0.2283]
[1763553231509,0.2285,3087.8,3087.7,0.2283]
[1763553231812,0.75354,3087.8,3087.7,0.2283]
[1763553233212,0.75354,3087.8,3087.7,0.75334]
[1763553233402,3.2078,3088.1,3088.0,0.2283]
[1763553233712,3.73278,3088.1,3088.0,0.89349]
[1763553234406,3.2078,3088.1,3088.0,0.89349]
[1763553235816,3.73278,3088.1,3088.0,0.89349]
[1763553239715,3.96128,3088.1,3088.0,0.89349]
[1763553239915,3.73278,3088.1,3088.0,0.89349]
[1763553240810,3.96128,3088.1,3088.0,0.89349]
[1763553241012,0.75351,3088.0,3087.9,0.52499]
[1763553241215,0.75351,3088.0,3087.9,0.75329]
[1763553241715,3.73278,3088.1,3088.0,0.88749]
[1763553242013,3.2078,3088.1,3088.0,0.88749]
[1763553243713,0.52494,3088.4,3088.0,3.342]
[1763553243911,3.73271,3088.5,3088.4,0.2257]
[1763553244112,0.00484982,3088.8,3088.7,0.75057]
[1763553244415,0.73895589,3088.8,3088.7,1.87958324]
[1763553244718,0.76640982,3088.8,3088.7,0.75057]
[1763553244919,0.24154982,3088.8,3088.7,0.75057]
[1763553245216,0.76640982,3088.8,3088.7,0.75057]
[1763553245412,0.2367,3088.6,3088.2,1.74882458]
[1763553245714,1.13386306,3088.8,3088.1,3.2078]
[1763553245715,0.76166,3088.2,3088.1,0.2257]
[1763553246107,0.76166,3088.2,3088.1,0.75068]
[1763553246915,0.76166,3088.2,3088.1,0.2257]
[1763553247119,0.76166,3088.2,3088.1,0.75068]
[1763553249519,0.76166,3088.2,3088.1,0.2257]
[1763553250207,0.76166,3088.2,3088.1,0.75068]
[1763553250822,0.76166,3088.2,3088.1,0.2257]
[1763553251119,0.76171,3088.1,3088.0,0.52499]
[1763553251617,0.76171,3087.9,3087.8,0.7507]
[1763553251815,0.7617,3088.0,3087.9,0.75071]
[1763553254521,0.525,3088.0,3087.9,0.75071]
[1763553254714,0.9082,3088.0,3087.9,0.52501]
[1763553254914,0.76174,3087.8,3087.7,0.52504]
[1763553255219,0.76174,3087.8,3087.7,0.75074]
[1763553255420,0.76174,3087.8,3087.7,0.52504]
[1763553255610,0.1465,3088.0,3087.6,3.2105893]
[1763553255611,0.76174,3087.7,3087.6,3.2105893]
[1763553255812,0.76174,3087.7,3087.6,0.0027893]
[1763553256416,1.49566812,3087.7,3087.6,0.0027893]
[1763553259621,0.2367,3087.3,3087.2,3.95863]
[1763553259925,0.7618,3087.4,3087.3,0.2257]
[1763553260624,0.7618,3087.4,3087.3,0.00230095]
[1763553261010,0.7618,3087.4,3087.3,0.52741095]
[1763553261416,0.7618,3087.4,3087.3,0.00230095]
[1763553261727,0.7618,3087.4,3087.3,0.52741095]
[1763553262327,0.7618,3087.4,3087.3,0.75311095]
[1763553262709,0.7618,3087.4,3087.3,0.00230095]
[1763553264228,0.7618,3087.4,3087.3,0.52741095]
[1763553264525,0.7618,3087.4,3087.3,0.75311095]
[1763553265520,0.7618,3087.4,3087.3,0.00230095]
[1763553265818,0.7618,3087.4,3087.3,0.52741095]
[1763553266325,0.7618,3087.4,3087.3,0.75631095]
[1763553266628,0.7618,3087.4,3087.3,0.00230095]
[1763553267124,0.7618,3087.4,3087.3,0.52741095]
[1763553269329,0.7618,3087.4,3087.3,0.00230095]
[1763553276626,0.7618,3087.4,3087.3,0.24060095]
[1763553277232,0.7618,3087.4,3087.3,0.00230095]
[1763553277728,0.7618,3087.4,3087.3,0.52741095]
[1763553277930,0.7618,3087.4,3087.3,0.76571095]
[1763553279835,0.7618,3087.4,3087.3,0.24060095]
[1763553281338,0.7618,3087.4,3087.3,0.00230095]
[1763553282239,1.4957918,3087.4,3087.3,0.00230095]
[1763553284735,2.65166514,3087.4,3087.3,0.00230095]
[1763553288642,0.2385,3086.8,3086.7,1.74882458]
[1763553288843,0.76373,3086.6,3086.5,1.74882458]
[1763553289137,0.86225,3086.5,3086.4,4.95662458]
[1763553289642,0.86225,3086.5,3086.4,4.95974137]
[1763553289942,0.8661113,3086.5,3086.4,4.95974137]
[1763553290248,0.8661113,3086.5,3086.4,3.21091679]
[1763553290852,0.7676113,3086.5,3086.4,3.44921679]
[1763553291845,0.8741113,3086.5,3086.4,3.21091679]
[1763553292446,1.60840927,3086.5,3086.4,0.00311679]
[1763553293843,1.50190927,3086.5,3086.4,0.24141679]
[1763553294148,0.7676113,3086.5,3086.4,0.24141679]
[1763553295447,1.60735724,3086.5,3086.4,0.00311679]
[1763553297941,1.50085724,3086.5,3086.4,0.24141679]
[1763553298247,0.7676113,3086.5,3086.4,0.24141679]
[1763553300245,0.8741113,3086.5,3086.4,0.00311679]
[1763553300854,0.8741113,3086.5,3086.4,0.24141679]
[1763553301147,0.7676113,3086.5,3086.4,0.24141679]
[1763553302152,0.8742113,3086.5,3086.4,0.00311679]
[1763553303952,0.52538,3085.8,3085.7,0.75318]
[1763553304950,0.52538,3085.8,3085.7,0.75685426]
[1763553305946,0.77078,3085.8,3085.7,0.75685426]
[1763553306347,0.77078,3085.8,3085.7,0.00367426]
[1763553306649,1.92665334,3085.8,3085.7,0.00367426]
[1763553306849,0.77078,3085.8,3085.7,0.00367426]
[1763553307652,1.92665334,3085.8,3085.7,0.00367426]
[1763553308149,5.13445334,3085.8,3085.7,0.00367426]
[1763553309751,0.77089,3085.1,3085.0,0.2278]
[1763553309957,0.2454,3084.9,3084.7,3.2078]
[1763553310252,0.77097,3084.6,3084.5,0.3698]
[1763553310450,0.52561,3084.4,3084.3,3.73341]
[1763553310651,0.52559,3084.5,3084.3,3.4356]
[1763553310843,0.52559,3084.5,3084.4,0.75341]
[1763553311245,0.52559,3084.5,3084.4,0.2278]
[1763553311657,0.77099,3084.5,3084.4,0.2278]
[1763553311855,0.77097,3084.7,3084.6,0.2278]
[1763553312658,0.77101,3084.5,3084.4,0.2278]
[1763553312849,0.52561,3084.5,3084.4,0.75341]
[1763553313153,0.2454,3084.6,3084.3,3.73580102]
[1763553313348,0.77101,3084.4,3084.3,3.96360102]
[1763553313548,0.77101,3084.4,3084.3,3.43799102]
[1763553313744,0.77101,3084.4,3084.3,3.21019102]
[1763553313950,0.52561,3084.4,3084.3,3.43799102]
[1763553314154,0.52552,3084.9,3084.8,0.2278]
[1763553314560,0.77095,3084.7,3084.6,0.75336]
[1763553315756,0.52554,3084.8,3084.7,0.75335]
[1763553316144,3.2078,3085.0,3084.7,0.2278]
[1763553316347,3.97872,3085.0,3084.9,0.2278]
[1763553316751,3.73332,3085.0,3084.9,0.75332]
[1763553318059,0.00485806,3085.4,3085.0,0.8999]
[1763553318060,0.52549,3085.1,3085.0,0.8999]
[1763553318452,0.52547,3085.3,3085.2,0.52546]
[1763553318751,0.52547,3085.3,3085.2,0.75326]
[1763553318951,0.77089,3085.1,3085.0,0.2278]
[1763553319146,0.77092,3084.9,3084.8,0.75333]
[1763553321256,0.77092,3084.9,3084.8,0.2278]
[1763553321558,0.77092,3084.9,3084.8,0.75334]
[1763553322161,0.52552,3084.9,3084.8,0.75334]
[1763553325558,0.77194,3084.8,3084.7,3.2078]
[1763553325765,0.2464,3084.4,3084.3,3.98141102]
[1763553326864,0.77201,3084.4,3084.3,3.98141102]
[1763553327060,1.90394113,3084.4,3084.3,3.21019102]
[1763553327262,0.2464,3083.4,3083.3,3.2078]
[1763553327463,0.52574,3083.6,3083.5,0.3865]
[1763553327965,0.77214,3083.6,3083.5,0.3865]
[1763553328152,0.00485806,3083.7,3083.0,0.1466]
[1763553328153,0.77219,3083.3,3083.2,0.2456]
[1763553328365,0.2464,3083.1,3083.0,0.91234]
[1763553328559,0.2464,3083.1,3083.0,0.91568447]
[1763553329165,0.2464,3083.1,3083.0,0.38984447]
[1763553329166,0.77223,3083.1,3083.0,0.38984447]
[1763553329363,0.52581,3083.2,3083.1,0.2456]
[1763553329570,0.52581,3083.2,3083.1,0.77143]
[1763553329770,3.98296373,3083.3,3083.2,0.2456]
[1763553330067,3.21076373,3083.3,3083.2,0.77141]
[1763553330671,3.98295373,3083.3,3083.2,0.2456]
[1763553330965,3.21076373,3083.3,3083.2,0.77141]
[1763553331355,3.45716373,3083.3,3083.2,0.77141]
[1763553331556,3.21076373,3083.3,3083.2,0.77141]
[1763553333063,0.52583,3083.1,3083.0,0.24444447]
[1763553333272,0.52583,3083.1,3083.0,0.91018447]
[1763553333464,0.2256,3083.1,3083.0,0.38434447]
[1763553333670,0.75143,3083.1,3083.0,0.91018447]
[1763553333865,0.75143,3083.1,3083.0,0.38434447]
[1763553334267,0.75143,3083.1,3083.0,0.91018447]
[1763553334766,0.75143,3083.1,3083.0,0.24444447]
[1763553334968,0.75143,3083.1,3083.0,0.00334447]
[1763553335271,0.2256,3081.4,3080.7,3.73403]
[1763553335466,3.2078,3081.1,3080.7,0.2411]
[1763553335660,3.2078,3081.1,3081.0,0.381]
[1763553335965,0.2304661,3081.4,3081.0,0.66607]
[1763553336162,0.2256,3080.6,3080.1,0.52633]
[1763553336364,3.2078,3080.3,3080.1,0.00249185]
[1763553336560,0.2256,3080.2,3080.1,0.00249185]
[1763553336965,0.2256,3080.2,3080.1,0.24359185]
[1763553337279,0.52639,3079.9,3078.6,1.74882458]
[1763553337571,3.2078,3080.4,3080.3,0.76741]
[1763553337873,0.0036969,3081.4,3081.3,0.2411]
[1763553338179,0.0036969,3081.4,3081.3,0.76723]
[1763553338376,0.0036969,3081.4,3081.3,0.77085397]
[1763553338681,0.0036969,3081.4,3081.3,0.24472397]
[1763553340472,0.0036969,3081.4,3081.0,0.1399]
[1763553340668,0.5298269,3081.4,3081.0,0.1399]
[1763553341568,0.5298269,3081.4,3081.0,0.14219348]
[1763553341866,0.5298269,3081.4,3081.0,0.66837348]
[1763553342070,0.0036969,3081.4,3081.3,0.2411]
[1763553342977,0.0036969,3081.4,3081.3,3.4489]
[1763553343576,0.0036969,3081.4,3081.3,0.2411]
[1763553345275,0.0036969,3081.4,3081.0,0.14219348]
[1763553345578,0.0036969,3081.4,3081.0,0.66836348]
[1763553345775,3.73396,3081.2,3081.0,0.14219348]
[1763553346478,3.73396,3081.2,3081.1,0.2411]
[1763553348870,3.2078,3081.2,3081.1,0.76727]
[1763553349173,0.52615,3081.2,3081.1,0.76727]
[1763553351078,0.0036969,3081.4,3081.3,0.52613]
[1763553351579,0.0036969,3081.4,3081.3,0.76723]
[1763553352278,0.0036969,3081.4,3081.3,2.14523]
[1763553353080,3.2078,3081.6,3081.5,0.9071]
[1763553353884,0.0048661,3081.7,3081.6,0.76718]
[1763553354186,0.00811745,3081.7,3081.6,0.76718]
[1763553355880,0.00811745,3081.7,3081.6,3.93218]
[1763553357592,3.74198745,3081.7,3081.6,3.164]
[1763553357990,3.74198745,3081.7,3081.6,3.69008]
[1763553358407,0.00811745,3081.7,3081.6,3.93118]
[1763553359396,0.53418745,3081.7,3081.6,3.93118]
[1763553359586,0.53418745,3081.7,3081.6,0.76718]
[1763553359786,0.53418745,3081.7,3081.6,2.18118]
[1763553359995,0.00811745,3081.7,3081.6,2.18118]
[1763553360186,0.53418745,3081.7,3081.6,2.18118]
[1763553361093,0.53418745,3081.7,3081.6,3.93018]
[1763553361493,0.00811745,3081.7,3081.6,3.93018]
[1763553362898,3.2078,3082.1,3082.0,0.89332]
[1763553363401,3.7338,3082.1,3082.0,0.89332]
[1763553363898,3.73649126,3082.1,3082.0,0.89332]
[1763553364097,3.21049126,3082.1,3082.0,0.89332]
[1763553364292,2.82071308,3082.1,3082.0,0.89332]
[1763553365097,3.34671308,3082.1,3082.0,0.89332]
[1763553365483,3.34671308,3082.1,3082.0,0.3673]
[1763553365690,2.82071308,3082.1,3082.0,4.05532]
[1763553365996,3.34671308,3082.1,3082.0,4.05532]
[1763553366203,2.82071308,3082.1,3082.0,4.05532]
[1763553366696,0.0048661,3082.4,3082.3,0.74916]
[1763553366999,0.5308161,3082.4,3082.0,3.3519]
[1763553367200,1.2583933,3082.3,3082.2,0.74918]
[1763553367499,0.52598,3082.3,3082.2,0.74918]
[1763553367686,0.52960561,3082.3,3082.2,0.2232]
[1763553368303,0.52960561,3082.3,3082.2,0.74918]
[1763553368598,0.52605,3081.8,3081.7,0.0048661]
[1763553368796,4.46622301,3081.8,3081.7,0.0048661]
[1763553370099,10.46622301,3081.8,3081.7,0.0048661]
[1763553370291,0.52617,3081.1,3081.0,0.66838348]
[1763553370491,3.73395,3081.3,3081.2,0.74935]
[1763553370907,0.52602,3082.0,3081.5,0.1441]
[1763553371203,0.2354,3081.8,3081.7,0.74926]
[1763553371501,0.76145,3081.8,3081.7,2.64106]
[1763553371690,0.2354,3081.8,3081.7,2.64106]
[1763553371890,0.2354,3081.5,3081.4,3.2078]
[1763553372098,0.2354,3081.2,3081.1,0.74937]
[1763553373796,0.76153,3081.4,3081.3,0.74933]
[1763553374794,0.76157,3081.1,3081.0,0.00229348]
[1763553375098,0.52608,3081.7,3081.6,0.74928]
[1763553375301,3.2078,3081.8,3081.7,0.74927]
[1763553375704,3.73385,3081.8,3081.7,2.80027]
[1763553376995,0.52605,3081.8,3081.7,2.80027]
[1763553377597,0.52605,3081.8,3081.7,0.74927]
[1763553377794,0.76143,3082.0,3081.9,0.74923]
[1763553377998,3.73381,3082.1,3082.0,0.89332]
[1763553378494,3.73381,3082.1,3082.0,0.3673]
[1763553378691,3.96921,3082.1,3082.0,0.3673]
[1763553379706,3.96921,3082.1,3082.0,0.89331]
[1763553380914,3.2078,3082.1,3082.0,0.89331]
[1763553381903,0.00362561,3082.3,3082.2,0.74918]
[1763553383800,0.0048661,3082.4,3082.3,0.74916]
[1763553384108,3.2078,3082.9,3082.8,0.74908]
[1763553384407,3.2078,3082.9,3082.8,3.54608]
[1763553384607,3.7336,3083.3,3083.2,0.75481]
[1763553384905,3.73672751,3083.3,3083.2,0.2316299]
[1763553385113,3.98212751,3083.3,3083.2,0.7574399]
[1763553385807,3.98212751,3083.3,3083.2,0.2316299]
[1763553386010,3.98212751,3083.3,3083.2,0.0026299]
[1763553386810,3.98212751,3083.3,3083.2,0.5284399]
[1763553387104,3.98212751,3083.3,3083.2,0.0026299]
[1763553388106,3.98211751,3083.3,3083.2,0.0026299]
[1763553388310,3.98211751,3083.3,3083.2,1.5896299]
[1763553388907,3.98211751,3083.3,3083.2,0.0026299]
[1763553389616,9.98211751,3083.3,3083.2,0.0026299]
[1763553389915,10.71373538,3083.3,3083.2,0.0026299]
[1763553391309,0.91134,3083.0,3082.9,0.0048661]
[1763553392316,0.91134,3083.0,3082.9,0.00825917]
[1763553392918,1.64267532,3083.0,3082.9,0.00825917]
[1763553396221,0.91134,3083.0,3082.9,0.00825917]
[1763553398813,0.77124,3083.0,3082.9,0.00825917]
[1763553399620,0.77124,3083.0,3082.9,0.24155917]
[1763553400616,0.77124,3083.0,3082.9,0.76741917]
[1763553400924,0.52584,3083.0,3082.9,0.76741917]
[1763553401122,0.52583,3083.2,3083.1,0.75911]
[1763553401922,0.52583,3083.2,3083.1,0.2333]
[1763553402124,0.75653,3083.2,3083.1,0.2333]
[1763553402420,0.75653,3083.2,3083.1,0.75913]
[1763553402925,0.52583,3083.2,3083.1,0.75913]
[1763553403126,0.75653,3083.2,3083.1,0.75913]
[1763553404928,0.52583,3083.2,3083.1,0.75913]
[1763553405423,0.75653,3083.2,3083.1,0.75913]
[1763553408625,0.75653,3083.2,3082.9,0.00825917]
[1763553408626,0.75654,3083.0,3082.9,0.00825917]
[1763553408831,0.75654,3083.0,3082.9,0.24155917]
[1763553409627,0.75654,3083.0,3082.9,0.76741917]
[1763553411535,0.52584,3083.0,3082.9,0.76741917]
[1763553412028,0.75654,3083.0,3082.9,0.00825917]
[1763553412237,0.75654,3083.0,3082.9,0.53411917]
[1763553413637,0.75654,3083.0,3082.9,0.76741917]
[1763553418233,0.2307,3083.2,3083.1,0.52582]
[1763553418535,0.73446631,3083.2,3083.1,0.75912]
[1763553419025,1.26027631,3083.2,3083.1,0.75912]
[1763553421634,3.21092751,3083.3,3083.1,0.75912]
[1763553421830,0.0048661,3083.6,3083.5,0.89276]
[1763553422032,0.73911388,3083.6,3083.5,0.89276]
[1763553422226,0.0048661,3083.6,3083.5,0.89276]
[1763553422629,0.5306061,3083.6,3083.5,0.89276]
[1763553422834,0.53408853,3083.6,3083.5,0.89276]
[1763553423138,0.00834853,3083.6,3083.5,0.89276]
[1763553424039,0.00834853,3083.6,3083.5,3.84476]
[1763553424536,3.2078,3084.2,3084.1,0.75316]
[1763553424936,0.5256,3084.5,3084.4,0.75311]
[1763553425340,3.4392,3085.1,3085.0,0.8925]
[1763553425529,3.96838556,3085.1,3085.0,0.1395]
[1763553425730,3.96838556,3085.1,3085.0,0.8925]
[1763553426833,0.75694,3084.8,3084.7,0.0048661]
[1763553428943,1.48876504,3084.8,3084.7,0.0048661]
[1763553429332,0.75704,3084.2,3084.1,0.52566]
[1763553429536,3.96484,3084.2,3084.1,0.52566]
[1763553430646,3.4392,3084.2,3084.1,0.75316]
[1763553430938,3.2078,3084.7,3084.3,0.2275]
[1763553431244,3.96475,3084.7,3084.6,0.75307]
[1763553432043,0.2314,3084.3,3084.2,1.159]
[1763553432249,0.75704,3084.3,3084.2,0.52562]
[1763553432544,0.75704,3084.3,3084.2,0.75312]
[1763553435641,3.73336,3084.7,3084.2,0.2275]
[1763553435848,0.75699,3084.5,3084.4,0.75311]
[1763553436848,0.75707,3084.0,3083.9,3.4353]
[1763553437147,0.2314,3083.9,3083.8,0.0048661]
[1763553437549,0.2314,3083.9,3083.8,0.2323661]
[1763553437740,0.75709,3083.9,3083.8,0.0048661]
[1763553442339,3.73348,3084.0,3083.9,0.2275]
[1763553442548,3.96488,3084.0,3083.9,0.2275]
[1763553443348,3.4339,3084.4,3084.3,0.52562]
[1763553443543,3.4339,3084.4,3084.3,0.75482]
[1763553443848,3.2078,3084.4,3084.3,0.75482]
[1763553444440,3.95944,3084.8,3084.7,0.75475]
[1763553444642,3.95944,3084.8,3084.7,0.2292]
[1763553444847,3.95944,3084.8,3084.7,0.75475]
[1763553447252,0.75166,3084.7,3084.6,0.75477]
[1763553448753,0.6705,3084.5,3084.4,0.5256]
[1763553448952,0.75171,3084.4,3084.3,3.73342]
[1763553449555,0.2261,3084.4,3084.3,3.96262]
[1763553449747,0.52557,3084.6,3084.5,0.52556]
[1763553449946,0.75167,3084.6,3084.5,0.75476]
[1763553450560,0.75167,3084.6,3084.5,0.52556]
[1763553450954,0.2261,3084.4,3083.9,4.95662458]
[1763553451260,0.2261,3084.0,3083.9,3.96268]
[1763553451753,0.3734,3084.0,3083.9,3.96268]
[1763553453349,0.89907,3084.0,3083.9,3.96268]
[1763553453749,0.89907,3084.0,3083.9,0.52568]
[1763553455058,0.3734,3084.0,3083.9,0.52568]
[1763553455755,0.3734,3084.0,3083.9,0.76708]
[1763553456860,0.89907,3084.0,3083.9,0.76708]
[1763553457158,0.76509,3083.9,3083.8,0.7719761]
[1763553460151,0.76509,3083.9,3083.8,3.0399761]
[1763553460346,0.2394,3083.9,3083.8,3.0399761]
[1763553460751,0.2394,3084.1,3084.0,0.2414]
[1763553460956,0.52565,3084.2,3084.1,0.76706]
[1763553461262,0.76505,3084.2,3084.1,0.76706]
[1763553463864,0.2394,3084.2,3084.1,0.76706]
[1763553464763,0.76504,3084.2,3084.1,0.76706]
[1763553464964,0.3754823,3084.2,3084.1,0.76706]
[1763553465264,0.76506,3084.1,3084.0,0.76707]
[1763553465463,0.76506,3084.1,3084.0,0.90777]
[1763553472173,0.52564,3084.2,3084.1,0.76706]
[1763553472670,0.76504,3084.2,3084.1,0.76706]
[1763553472869,0.76504,3084.2,3084.1,0.52566]
[1763553473968,0.76509,3083.9,3083.8,0.5048661]
[1763553474174,3.97289,3083.9,3083.8,0.7462661]
[1763553474567,3.97289,3083.9,3083.8,1.2719761]
[1763553475667,0.76509,3083.9,3083.8,1.2719761]
[1763553477973,0.76508,3084.0,3083.9,0.76709]
[1763553478577,0.52564,3084.2,3084.1,0.76705]
[1763553478780,1.25677756,3084.2,3084.1,0.76705]
[1763553479280,0.73113756,3084.2,3084.1,0.76705]
[1763553479774,3.97277,3084.7,3084.6,0.76694]
[1763553479975,3.93931559,3084.7,3084.6,3.04894]
[1763553480180,3.2078,3084.7,3084.6,3.04894]
[1763553480782,3.2078,3084.7,3084.6,4.18114254]
[1763553481684,0.52551,3085.0,3084.9,0.76692]
[1763553482182,0.77131,3085.0,3084.9,0.76692]
[1763553485078,3.73698556,3085.1,3085.0,0.8914]
[1763553485385,3.98278556,3085.1,3085.0,0.8914]
[1763553487080,3.45729556,3085.1,3085.0,0.8914]
[1763553487385,3.21149556,3085.1,3085.0,0.8914]
[1763553487981,0.00369556,3085.1,3085.0,0.8914]
[1763553488983,0.0048661,3085.4,3085.3,0.75695]
[1763553490083,0.00844077,3085.4,3085.3,0.7607511]
[1763553500698,0.77121,3085.6,3085.5,0.89132]
[1763553501598,0.7754154,3085.6,3085.5,0.89132]
[1763553504501,0.7754054,3085.6,3085.5,0.89132]
[1763553507496,0.2500054,3085.6,3085.5,0.89132]
[1763553507899,0.7754054,3085.6,3085.5,0.89132]
[1763553508195,0.7754054,3085.6,3085.5,0.3659]
[1763553508398,0.76204,3085.4,3085.3,0.0038011]
[1763553508604,1.89424254,3085.4,3085.3,0.0038011]
[1763553509296,1.89424254,3085.4,3085.3,0.5292511]
[1763553509601,3.3255,3085.5,3085.4,0.75234]
[1763553509602,3.73322,3085.5,3085.4,0.75234]
[1763553509796,3.96982,3085.5,3085.4,0.75234]
[1763553510499,3.5621,3085.5,3085.3,0.5292511]